bitfinex/quotes_ETHUSD_20240715
["timestamp","ask_amount","ask_price","bid_price","bid_amount"]
[1721068396858,2.9296,3413.5,3412.6,2.93031]
[1721068397022,2.92981,3413.2,3412.3,2.93055]
[1721068397228,0.35169276,3413.7,3412.2,2.93065]
[1721068397229,2.92989,3413.1,3412.2,2.93065]
[1721068397537,0.816732,3413.0,3412.2,2.93065]
[1721068397923,2.93006,3412.9,3412.0,2.93083]
[1721068398255,0.816732,3413.0,3412.1,2.93068]
[1721068398472,2.3077,3413.3,3411.8,7.4]
[1721068398629,2.92998,3413.0,3411.8,7.4]
[1721068399164,2.92989,3413.1,3412.3,2.93051]
[1721068399374,2.92989,3413.1,3412.1,2.93071]
[1721068399375,2.93012,3412.9,3412.1,2.93071]
[1721068399589,2.3077,3413.3,3412.3,2.93049]
[1721068399590,5.23741,3413.3,3412.3,2.93049]
[1721068399787,0.523741,3413.2,3412.5,2.9304]
[1721068400096,0.523741,3413.2,3412.6,2.93031]
[1721068400445,2.3077,3413.3,3413.0,2.92995]
[1721068400695,3.65186,3414.5,3413.2,2.92978]
[1721068400696,2.4494,3413.9,3413.2,2.92978]
[1721068401598,2.98804776,3413.8,3412.4,10.33046]
[1721068401743,2.92965,3413.4,3412.6,2.93031]
[1721068401946,2.92965,3413.4,3412.4,10.33048]
[1721068401947,2.92937,3413.7,3413.0,2.92996]
[1721068402156,2.92937,3413.7,3412.7,0.058599]
[1721068402157,0.537877,3413.6,3412.9,2.93004]
[1721068402357,2.4494,3413.9,3413.3,2.92963]
[1721068402554,2.74226,3414.5,3413.1,2.92984]
[1721068402760,2.74226,3414.5,3414.0,2.92904]
[1721068402761,2.4494,3414.5,3414.0,2.92904]
[1721068402998,2.4494,3414.5,3413.8,2.92922]
[1721068403158,2.4494,3414.5,3413.9,2.92919]
[1721068403562,2.4494,3414.5,3414.0,2.92904]
[1721068403859,2.4494,3414.5,3413.5,2.92948]
[1721068404211,2.4494,3414.5,3413.3,2.92971]
[1721068404212,2.4494,3414.5,3413.9,2.92918]
[1721068405422,2.4494,3414.5,3413.0,3.0]
[1721068405423,2.92877,3414.4,3413.4,2.92956]
[1721068405563,2.92877,3414.4,3412.2,6.28962]
[1721068405564,2.92903,3414.1,3413.2,2.92977]
[1721068406394,2.92921,3413.9,3413.0,2.92996]
[1721068406694,2.92921,3413.9,3413.1,2.92988]
[1721068407010,0.59169978,3413.8,3413.1,2.92988]
[1721068407356,3.57974754,3413.8,3412.8,2.93013]
[1721068407593,2.4566,3413.7,3413.0,2.92994]
[1721068407797,2.4566,3413.7,3413.1,2.92986]
[1721068407958,2.4566,3413.7,3412.4,2.93042]
[1721068408159,2.4566,3413.7,3411.1,5.5288]
[1721068408160,3.23428998,3413.6,3412.6,2.93027]
[1721068408412,3.23428998,3413.6,3412.0,7.4]
[1721068408413,2.92972,3413.3,3412.2,2.93063]
[1721068408799,2.92972,3413.3,3412.0,7.4]
[1721068408800,6.59333998,3413.6,3412.5,2.93033]
[1721068408999,3.23433998,3413.6,3412.5,2.93033]
[1721068409215,3.23433998,3413.6,3412.7,2.93017]
[1721068409374,6.78033298,3413.5,3412.7,2.93017]
[1721068409565,2.92964,3413.4,3412.7,2.93017]
[1721068409788,2.92964,3413.4,3412.5,5.86066]
[1721068410020,0.05875776,3413.4,3412.3,2.93054]
[1721068410194,2.92991,3413.1,3412.3,2.93054]
[1721068410394,3.52174178,3413.1,3412.3,2.93054]
[1721068410806,2.92998,3413.0,3412.3,2.93054]
[1721068410989,2.92998,3413.0,3412.2,2.93065]
[1721068411491,2.92998,3413.0,3411.4,7.4]
[1721068411492,2.93043,3412.5,3411.4,7.4]
[1721068411689,2.93043,3412.5,3411.1,2.93159]
[1721068411690,3.452783,3412.5,3411.1,2.93159]
[1721068411889,3.452783,3412.5,3411.7,2.93103]
[1721068412123,2.93049,3412.4,3411.6,2.93109]
[1721068412624,2.93049,3412.4,3411.0,7.4]
[1721068412625,2.98924776,3412.4,3411.0,7.4]
[1721068412831,2.93058,3412.3,3411.5,2.93119]
[1721068413014,3.91069808,3412.3,3411.4,2.93127]
[1721068413333,3.96945584,3412.3,3411.4,2.93127]
[1721068413490,2.98944776,3412.2,3411.0,7.4]
[1721068413690,2.98944776,3412.2,3410.9,12.37]
[1721068413691,2.93081,3412.1,3411.1,2.93153]
[1721068413891,2.93086,3412.0,3411.2,2.93151]
[1721068414124,2.93086,3412.0,3411.0,2.93168]
[1721068414125,2.93105,3411.8,3411.0,2.93168]
[1721068414312,2.98980776,3411.8,3410.6,7.4]
[1721068414518,2.93105,3411.8,3411.0,2.93165]
[1721068414728,2.93123,3411.6,3409.2,4.43319999]
[1721068414927,2.93123,3411.6,3410.5,2.93211]
[1721068414928,2.93135,3411.4,3410.5,2.93211]
[1721068415143,2.99010776,3411.4,3410.5,2.93211]
[1721068415342,3.65799878,3411.5,3410.8,2.93186]
[1721068415545,2.4653,3411.9,3410.7,2.93194]
[1721068415838,3.359,3412.5,3410.2,2.4437]
[1721068415839,5.6642,3412.5,3410.9,2.9317]
[1721068416041,5.6642,3412.5,3410.8,0.05861937]
[1721068416042,2.3052,3412.5,3411.9,2.93085]
[1721068416244,2.3052,3412.5,3412.1,2.93067]
[1721068416446,2.3052,3412.5,3412.2,2.93065]
[1721068416659,2.9298,3413.2,3412.2,2.93065]
[1721068416660,5.2655,3413.2,3412.2,2.93065]
[1721068416951,5.2655,3413.2,3411.1,2.93155]
[1721068416952,2.93006,3412.9,3411.8,2.93098]
[1721068417179,2.93014,3412.8,3412.0,2.93076]
[1721068417464,2.93014,3412.8,3411.3,2.93143]
[1721068417465,2.93029,3412.7,3411.7,2.93104]
[1721068417610,2.93014,3412.8,3411.7,2.93104]
[1721068418115,3.359,3413.0,3411.5,2.93125]
[1721068418319,7.204137,3413.0,3412.2,2.93065]
[1721068419111,2.93011,3412.9,3412.2,2.93065]
[1721068419559,0.05875776,3412.8,3411.7,2.93105]
[1721068420070,6.28946,3412.5,3411.7,2.93108]
[1721068420342,6.28946,3412.5,3411.5,2.93125]
[1721068420343,2.93063,3412.3,3411.5,2.93125]
[1721068421008,1.164055,3412.4,3411.7,2.93106]
[1721068421164,2.93049,3412.4,3411.7,2.93106]
[1721068421331,2.93049,3412.4,3411.5,2.93125]
[1721068421526,2.93067,3412.2,3411.4,2.93133]
[1721068421746,2.93067,3412.2,3411.3,2.93141]
[1721068421968,2.93075,3412.1,3411.3,2.93141]
[1721068422132,2.93092,3411.9,3411.2,2.93151]
[1721068422957,3.08689476,3412.0,3411.2,2.93151]
[1721068422958,6.01772476,3412.0,3411.2,2.93151]
[1721068423521,6.01774476,3412.0,3411.2,2.93151]
[1721068424654,2.442,3412.0,3411.4,2.93128]
[1721068424850,2.3511,3412.6,3412.0,2.9308]
[1721068425153,2.3511,3412.6,3411.1,7.4]
[1721068425154,2.3511,3412.6,3412.1,2.93074]
[1721068425855,2.3511,3412.6,3411.9,2.93085]
[1721068426069,2.3511,3412.6,3411.6,2.93114]
[1721068426070,5.34024776,3412.6,3411.7,2.931]
[1721068426368,2.93051,3412.4,3411.4,2.93132]
[1721068426662,2.93051,3412.4,3411.6,2.93115]
[1721068427223,2.93051,3412.4,3411.7,2.93108]
[1721068427960,2.3511,3412.6,3411.8,2.93092]
[1721068428466,2.98922776,3412.5,3411.7,2.93106]
[1721068428648,2.98922776,3412.5,3411.1,7.4]
[1721068428649,0.05875776,3412.5,3411.4,2.93131]
[1721068428851,2.9305,3412.4,3411.6,2.9311]
[1721068429227,2.98916776,3412.5,3411.7,2.93104]
[1721068429433,2.3511,3412.6,3412.1,2.93073]
[1721068430223,2.3511,3412.6,3412.2,2.93064]
[1721068430428,2.3511,3412.6,3412.1,2.93073]
[1721068430429,2.3511,3412.6,3412.3,2.93055]
[1721068430768,2.3511,3412.6,3412.1,2.93073]
[1721068431064,2.3511,3412.6,3412.2,2.93063]
[1721068431271,2.3511,3412.6,3412.0,2.93077]
[1721068431475,2.3511,3412.6,3411.7,7.4]
[1721068431476,2.3511,3412.6,3412.2,2.93063]
[1721068432027,2.3511,3412.6,3411.7,7.4]
[1721068432028,2.3511,3412.6,3412.0,2.93082]
[1721068432335,2.879235,3412.6,3412.0,2.93082]
[1721068433871,5.809605,3412.6,3411.8,2.931]
[1721068434040,5.809605,3412.6,3411.9,2.93091]
[1721068434387,2.879235,3412.6,3412.0,2.93076]
[1721068434684,2.3511,3412.6,3412.0,2.93076]
[1721068435377,2.3511,3412.6,3412.3,2.93056]
[1721068435670,2.3511,3412.6,3412.1,2.93074]
[1721068436028,2.3511,3412.6,3411.9,2.93089]
[1721068436234,2.3511,3412.6,3411.9,2.93084]
[1721068436472,2.3511,3412.6,3412.1,2.93068]
[1721068436630,2.3511,3412.6,3412.1,5.86135]
[1721068436832,2.3511,3412.6,3411.7,7.4]
[1721068437032,2.879219,3412.6,3412.0,5.86153]
[1721068437233,2.879219,3412.6,3412.0,2.93075]
[1721068437541,2.879219,3412.6,3411.9,2.93087]
[1721068438543,0.05875776,3412.5,3411.9,2.93087]
[1721068438951,2.879219,3412.6,3412.1,2.93074]
[1721068439155,2.3511,3412.6,3412.1,2.93074]
[1721068439338,3.359,3413.2,3411.7,7.4]
[1721068439339,2.4986,3413.2,3412.4,2.93042]
[1721068439860,2.92993,3413.1,3412.4,2.93042]
[1721068440165,2.92998,3413.0,3412.2,2.93061]
[1721068440464,0.05875776,3412.9,3412.0,2.93079]
[1721068440641,3.472773,3413.1,3412.3,5.86098]
[1721068440964,3.472773,3413.1,3412.3,5.86099]
[1721068441162,0.542853,3413.1,3412.4,2.93043]
[1721068441471,3.472743,3413.1,3412.4,2.93043]
[1721068441846,2.55735776,3413.2,3412.6,2.93025]
[1721068442190,2.4986,3413.2,3412.6,2.93025]
[1721068442385,2.4986,3413.2,3412.3,2.93053]
[1721068442386,2.98871776,3413.1,3412.3,2.93053]
[1721068442536,2.98871776,3413.1,3412.4,2.93048]
[1721068442733,0.84170978,3413.0,3412.4,2.93048]
[1721068443293,0.84170978,3413.0,3411.7,2.93105]
[1721068443294,0.05875776,3412.9,3412.0,2.93075]
[1721068443579,0.05875776,3412.9,3412.2,2.93059]
[1721068443776,2.98883776,3412.9,3412.2,5.86118]
[1721068444093,2.98883776,3412.9,3412.3,2.93056]
[1721068444251,3.91474851,3412.9,3412.3,2.93056]
[1721068444438,0.98466851,3412.9,3412.3,2.93056]
[1721068444806,2.4986,3413.2,3412.5,2.93039]
[1721068444935,2.4986,3413.2,3413.0,2.92996]
[1721068445637,2.4986,3413.2,3413.0,2.92989]
[1721068445839,2.3852,3413.7,3411.9,2.38349943]
[1721068446073,2.3852,3414.2,3413.5,2.92954]
[1721068446258,3.46971643,3414.2,3413.6,2.92945]
[1721068446685,6.39865643,3414.2,3413.6,2.92945]
[1721068447092,3.46971643,3414.2,3413.6,2.92945]
[1721068447492,2.3852,3414.2,3413.6,2.92945]
[1721068448349,0.05875776,3414.1,3413.4,2.92963]
[1721068448563,5.31417,3414.2,3413.8,2.92926]
[1721068448564,2.3852,3414.2,3413.8,2.92926]
[1721068448772,0.05875776,3414.1,3413.6,2.9294]
[1721068448976,0.05875776,3414.3,3413.4,2.9296]
[1721068449160,0.81423841,3414.2,3413.5,2.92954]
[1721068449371,1.73260642,3414.2,3413.5,2.92954]
[1721068449686,4.66155642,3414.2,3413.5,2.92954]
[1721068449892,2.92911,3414.0,3413.1,2.92988]
[1721068450188,0.05875776,3413.9,3413.2,2.92978]
[1721068450406,1.73620541,3413.9,3413.2,2.92978]
[1721068450554,0.8178374,3413.9,3413.3,2.9297]
[1721068450859,0.8178374,3413.9,3412.7,2.93022]
[1721068450860,3.7470874,3413.9,3412.7,2.93022]
[1721068451086,3.7470874,3413.9,3412.3,2.93053]
[1721068451087,2.92977,3413.3,3412.3,2.93053]
[1721068451407,2.92977,3413.3,3411.1,0.60410906]
[1721068451408,3.84839801,3413.0,3412.1,2.93069]
[1721068451573,0.05875776,3412.9,3412.1,2.93069]
[1721068451774,2.98882776,3412.9,3412.1,2.93069]
[1721068451982,2.10985104,3412.8,3412.1,2.93069]
[1721068452181,1.54960922,3412.7,3412.1,2.93069]
[1721068452489,0.05875776,3412.7,3412.1,2.93069]
[1721068453011,1.49086236,3412.6,3411.7,2.93105]
[1721068453304,1.49086236,3412.6,3411.5,2.93124]
[1721068453305,2.98916776,3412.5,3411.5,2.93124]
[1721068453510,2.86434012,3412.4,3411.6,2.93116]
[1721068453666,2.86434012,3412.4,3410.6,2.93198]
[1721068453667,2.4553,3412.2,3411.3,2.93141]
[1721068453996,2.46921909,3412.1,3411.4,2.93134]
[1721068454204,2.41046133,3412.0,3411.4,2.93134]
[1721068454380,1.54962012,3411.9,3411.4,2.93134]
[1721068454580,1.49086236,3411.8,3411.4,2.93134]
[1721068454899,0.05875776,3411.7,3410.1,2.93241]
[1721068455074,0.05875776,3411.7,3409.6,2.3724]
[1721068455075,4.42203236,3411.6,3410.8,2.93184]
[1721068455276,4.42203236,3411.6,3410.6,2.93201]
[1721068455277,5.40049909,3411.5,3410.7,2.93194]
[1721068455465,5.40049909,3411.5,3410.0,2.93254]
[1721068455466,2.93159,3411.2,3410.0,2.93254]
[1721068455670,2.93159,3411.2,3408.9,3.38813179]
[1721068455671,3.85137897,3410.9,3409.9,2.93257]
[1721068455998,3.85137897,3410.9,3410.2,2.93236]
[1721068455999,1.54962012,3410.8,3410.2,2.93236]
[1721068456170,1.54962012,3410.7,3410.0,2.93249]
[1721068456371,1.49086236,3410.6,3410.0,2.93249]
[1721068456569,1.49086236,3410.6,3409.8,2.93269]
[1721068456766,2.03096227,3410.6,3410.1,2.93246]
[1721068456979,1.54962012,3410.5,3409.5,2.93296]
[1721068457270,1.54962012,3410.5,3408.9,2.4805]
[1721068457271,2.93281,3409.7,3408.7,2.93361]
[1721068457464,2.9327,3409.9,3407.4,2.88583139]
[1721068457465,2.4938,3409.5,3407.4,2.88583139]
[1721068457707,1.55105439,3409.4,3408.5,2.93377]
[1721068457888,0.05875776,3409.4,3408.4,2.93391]
[1721068458230,0.05875776,3409.4,3408.7,2.93362]
[1721068458410,0.05875776,3409.4,3407.4,2.6176835]
[1721068458411,3.60828963,3409.4,3408.3,2.93398]
[1721068458645,2.93344,3409.0,3407.7,2.93452]
[1721068458795,0.05875776,3408.9,3407.8,2.93444]
[1721068458995,2.99239776,3408.8,3407.4,0.1202835]
[1721068459191,2.4938,3408.6,3407.4,0.1202835]
[1721068459492,2.4938,3408.6,3407.6,2.93461]
[1721068459689,2.4938,3408.6,3407.9,2.93433]
[1721068459894,0.05875776,3408.5,3408.1,2.93418]
[1721068460128,2.4938,3408.6,3408.1,2.93418]
[1721068460299,2.93397,3408.4,3407.4,0.1202835]
[1721068460502,2.4938,3407.4,3406.0,2.93595]
[1721068460727,2.4938,3407.4,3405.1,0.90763179]
[1721068460728,6.29413,3407.0,3405.8,2.93614]
[1721068460928,0.05875776,3406.9,3405.9,2.93607]
[1721068461091,0.05875776,3406.9,3405.1,2.9367]
[1721068461092,2.99397776,3406.9,3405.7,2.93624]
[1721068461288,2.4136,3406.7,3405.7,2.93624]
[1721068461533,2.4136,3406.7,3404.1,2.93757]
[1721068461534,2.4136,3407.4,3405.1,2.3494]
[1721068461710,2.4136,3408.1,3406.7,2.93538]
[1721068461894,5.34781,3408.1,3406.9,2.93514]
[1721068462094,5.34781,3408.1,3405.9,2.93604]
[1721068462095,2.4136,3408.1,3405.9,2.93604]
[1721068462317,2.4136,3408.1,3404.9,3.089]
[1721068462318,2.95496,3408.1,3406.0,0.0586957]
[1721068462522,2.95496,3408.1,3405.4,2.93645]
[1721068462523,2.93438,3407.9,3405.4,2.93645]
[1721068462704,2.93438,3407.9,3405.4,2.9365]
[1721068462705,2.93463,3407.6,3405.4,2.9365]
[1721068462913,2.93463,3407.6,3406.6,2.93545]
[1721068462914,0.05875776,3407.5,3406.6,2.93545]
[1721068463228,2.93479,3407.4,3406.4,2.93564]
[1721068463428,2.4136,3407.3,3404.5,2.93724]
[1721068463596,2.93513,3407.0,3406.1,2.93587]
[1721068464029,0.05875776,3406.9,3406.2,2.93581]
[1721068464209,3.17633,3407.2,3406.6,2.93546]
[1721068464210,0.24136,3407.2,3406.6,2.93546]
[1721068464406,0.05875776,3407.1,3406.6,2.93546]
[1721068465332,0.05875776,3407.1,3405.6,3.0]
[1721068465333,0.05875776,3407.0,3405.6,5.93626]
[1721068465566,2.93585,3406.2,3405.2,2.93668]
[1721068465848,2.4601,3405.5,3404.0,3.0579335]
[1721068466058,2.4601,3405.5,3404.0,0.1202835]
[1721068466059,0.24601,3405.4,3404.0,0.1202835]
[1721068466253,2.4601,3405.5,3404.0,0.1202835]
[1721068466417,3.16723579,3406.4,3404.0,0.1202835]
[1721068466418,2.4601,3406.3,3405.7,2.93623]
[1721068466617,2.4601,3406.3,3404.1,2.9376]
[1721068466618,2.4601,3406.3,3405.3,2.93658]
[1721068466853,2.4601,3406.3,3404.0,0.1202835]
[1721068466854,2.4601,3406.3,3405.7,2.93617]
[1721068467054,2.4601,3406.3,3404.0,0.1202835]
[1721068467265,2.4601,3406.3,3405.7,2.93617]
[1721068467266,0.05875776,3406.2,3405.7,2.93617]
[1721068467486,0.05875776,3406.2,3404.1,2.93762]
[1721068467487,3.02283358,3406.3,3404.1,35.0]
[1721068467631,0.05875776,3406.2,3404.2,5.93754]
[1721068467832,0.05875776,3406.2,3405.8,2.93615]
[1721068468270,0.05875776,3406.2,3404.8,5.93696]
[1721068468559,0.62488271,3406.1,3405.4,2.93643]
[1721068468858,0.62488271,3406.1,3405.5,2.93641]
[1721068469043,2.4601,3406.3,3405.5,2.93641]
[1721068469251,2.4601,3406.3,3406.1,2.9359]
[1721068469456,0.265496,3407.1,3406.2,2.93582]
[1721068469457,2.3184,3407.0,3406.2,2.93582]
[1721068469621,2.3184,3407.0,3406.4,2.93563]
[1721068469820,2.3184,3407.0,3405.3,3.0]
[1721068469821,2.93527,3406.9,3405.3,3.0]
[1721068470022,2.93527,3406.9,3406.0,2.93594]
[1721068470263,2.93522,3406.9,3406.1,2.9359]
[1721068470464,2.3184,3406.7,3404.0,0.1202835]
[1721068470673,2.3184,3405.9,3404.8,2.93694]
[1721068470823,0.58418876,3405.8,3405.3,2.93653]
[1721068471155,0.05875776,3405.8,3405.3,2.93653]
[1721068471350,2.3184,3405.9,3405.2,2.93661]
[1721068471559,2.3184,3405.9,3404.8,2.93695]
[1721068471560,0.05875776,3405.8,3404.8,2.93695]
[1721068471737,0.05875776,3405.8,3405.1,2.93676]
[1721068471940,0.05875776,3405.8,3404.9,2.93693]
[1721068472263,2.3184,3405.9,3404.0,0.1202835]
[1721068472264,0.23771578,3405.7,3404.0,0.1202835]
[1721068472479,0.05875776,3405.6,3405.1,2.93675]
[1721068473180,2.93641,3405.6,3404.6,2.93716]
[1721068473479,2.3184,3405.9,3404.5,2.93724]
[1721068473480,2.99524776,3405.5,3404.5,2.93724]
[1721068473779,2.93617,3405.8,3404.6,5.93718]
[1721068474126,2.93617,3405.8,3404.7,2.9371]
[1721068474359,2.93634,3405.6,3404.7,2.9371]
[1721068474674,0.87781576,3405.7,3404.2,2.93751]
[1721068474675,2.93679,3405.1,3404.2,2.93751]
[1721068474837,2.33445776,3405.0,3404.2,2.93751]
[1721068475041,2.93695,3404.9,3404.0,3.0579835]
[1721068475224,0.05875776,3404.8,3404.0,3.0579835]
[1721068475429,3.4864,3405.6,3404.0,3.0579835]
[1721068475430,2.2757,3404.6,3404.0,3.0579835]
[1721068475668,2.2757,3404.6,3402.1,36.5]
[1721068475669,3.089,3404.3,3402.1,2.9393]
[1721068475847,2.93772,3404.0,3402.9,2.93864]
[1721068476050,2.93781,3403.9,3403.0,2.93853]
[1721068476369,3.089,3404.2,3403.0,2.93852]
[1721068476370,2.93756,3404.2,3403.0,2.93852]
[1721068476662,2.93764,3404.1,3403.1,2.93848]
[1721068476840,0.35839754,3404.0,3403.1,2.93848]
[1721068477243,0.05875776,3403.9,3403.2,2.93837]
[1721068477651,0.29963978,3404.0,3403.2,2.93837]
[1721068477856,0.05875776,3403.9,3403.2,2.93837]
[1721068478429,0.29963978,3404.0,3403.4,2.93821]
[1721068478629,2.2757,3404.4,3403.4,2.93821]
[1721068478866,2.2757,3404.4,3403.6,2.93806]
[1721068479171,2.2757,3404.4,3403.8,2.93787]
[1721068479172,0.05875776,3404.3,3403.8,2.93787]
[1721068479540,0.05875776,3404.2,3403.9,2.93773]
[1721068479880,5.43353579,3405.1,3404.0,2.9377]
[1721068480433,5.43353579,3405.1,3403.0,3.0]
[1721068480736,1.5,3407.1,3403.0,3.0]
[1721068480737,0.05875776,3405.0,3404.7,2.93705]
[1721068480930,2.93644,3405.5,3404.5,2.93726]
[1721068481149,0.65191054,3405.4,3404.5,2.93726]
[1721068481577,0.65191054,3405.4,3404.6,2.93715]
[1721068482292,0.65191054,3405.4,3404.8,2.93701]
[1721068482293,0.59315278,3405.4,3404.8,2.93701]
[1721068482503,2.2663,3405.8,3405.0,2.93684]
[1721068482655,0.05875776,3405.7,3405.3,2.93657]
[1721068483007,6.10289579,3406.4,3404.4,2.93732]
[1721068483008,3.16723579,3406.4,3405.5,2.93642]
[1721068483182,0.61028958,3406.3,3405.5,2.93642]
[1721068483397,6.08365776,3406.2,3405.0,2.93677]
[1721068483555,6.08365776,3406.2,3404.5,2.93722]
[1721068483556,5.5404,3405.8,3404.5,2.93722]
[1721068483757,0.05875776,3405.7,3404.5,2.93722]
[1721068484066,2.93651,3405.4,3404.5,2.93722]
[1721068484274,2.93651,3405.4,3404.3,2.93746]
[1721068484275,0.05875776,3405.3,3404.6,2.93718]
[1721068484456,0.05875776,3405.3,3404.7,2.93703]
[1721068484657,0.05875776,3405.3,3404.2,2.9375]
[1721068485002,0.05875776,3405.3,3403.6,2.3018]
[1721068485003,0.05875776,3405.3,3404.5,2.93727]
[1721068485188,0.29953078,3405.2,3404.5,2.9372]
[1721068485503,0.29953078,3405.2,3403.6,2.3018]
[1721068485504,0.05875776,3405.1,3404.6,2.93712]
[1721068485699,0.05875776,3405.1,3404.2,2.93749]
[1721068485700,0.05875776,3405.1,3404.7,2.93703]
[1721068485858,0.05875776,3405.5,3405.1,2.93673]
[1721068486060,0.25101578,3405.6,3405.1,2.93673]
[1721068486308,0.25101578,3405.6,3405.3,2.93659]
[1721068486483,0.05875776,3405.5,3405.0,2.93685]
[1721068486983,6.02488,3406.2,3405.2,2.93667]
[1721068486984,0.05875776,3405.9,3405.2,2.93667]
[1721068487307,0.05875776,3405.9,3405.4,2.93645]
[1721068487457,0.05875776,3405.9,3405.5,2.93642]
[1721068487661,0.61028958,3406.3,3405.9,2.93601]
[1721068487662,0.05875776,3406.2,3405.9,2.93601]
[1721068487906,0.61028958,3406.3,3405.9,2.93601]
[1721068488065,5.38655,3407.0,3406.1,2.93589]
[1721068488770,2.4514,3407.0,3406.2,2.93574]
[1721068488974,2.93488,3407.3,3406.9,2.93514]
[1721068488975,0.05875776,3407.3,3406.9,2.93514]
[1721068489206,0.05875776,3407.5,3406.9,2.93514]
[1721068489418,0.30977354,3407.5,3406.9,2.93514]
[1721068489697,0.30977354,3407.5,3405.6,3.0]
[1721068489698,2.93497,3407.2,3406.2,2.93581]
[1721068489935,2.9353,3406.8,3405.6,3.0]
[1721068490083,0.05875776,3406.7,3405.7,2.93619]
[1721068490289,0.05875776,3406.7,3405.8,2.93616]
[1721068490290,2.99415776,3406.7,3405.8,2.93616]
[1721068490460,0.29941578,3406.6,3405.8,2.93616]
[1721068490667,0.05875776,3406.5,3405.8,2.93616]
[1721068490869,0.05875776,3406.5,3405.9,2.93605]
[1721068491363,0.05875776,3406.5,3405.8,2.93608]
[1721068493403,0.05875776,3406.5,3405.9,2.93606]
[1721068493786,2.93544,3406.7,3405.4,3.0]
[1721068493968,2.93562,3406.5,3405.5,2.93642]
[1721068494163,0.05875776,3406.4,3405.5,2.93642]
[1721068494469,0.05875776,3406.4,3404.9,2.93687]
[1721068494470,2.99441776,3406.4,3405.6,2.93633]
[1721068494800,0.36027375,3406.3,3405.6,2.93633]
[1721068495011,0.05875776,3406.2,3405.7,2.9362]
[1721068495302,0.05875776,3406.2,3405.6,2.93633]
[1721068496221,0.05875776,3406.2,3405.7,2.93624]
[1721068496426,0.39421891,3406.2,3405.5,2.93638]
[1721068496587,0.39421891,3406.2,3405.4,2.9365]
[1721068496588,0.05875776,3406.2,3405.4,2.9365]
[1721068496787,2.54185776,3406.2,3405.2,2.93663]
[1721068497038,2.54185776,3406.2,3405.1,2.93668]
[1721068497039,2.93605,3406.0,3405.1,2.93676]
[1721068497199,2.99483776,3405.9,3405.1,2.93676]
[1721068497411,2.99483776,3405.9,3405.2,2.93667]
[1721068497604,0.29948378,3405.8,3405.2,2.93667]
[1721068497915,0.05875776,3405.7,3405.2,2.93667]
[1721068498423,0.05875776,3405.7,3404.9,2.93691]
[1721068498789,0.05875776,3405.7,3405.1,2.9367]
[1721068498987,0.05875776,3405.7,3405.3,2.93658]
[1721068499200,0.05875776,3405.7,3405.5,2.93637]
[1721068499526,0.05875776,3406.1,3405.4,2.93649]
[1721068499683,0.58379215,3406.0,3405.4,2.93649]
[1721068499888,0.05875776,3405.9,3405.5,2.9364]
[1721068500330,0.05875776,3405.9,3405.3,2.93658]
[1721068500491,0.05875776,3405.9,3405.2,2.93667]
[1721068500691,0.05875776,3405.8,3405.5,2.9364]
[1721068501009,2.4831,3406.2,3405.5,2.9364]
[1721068501220,0.28433738,3406.1,3405.5,2.9364]
[1721068501736,0.05875776,3406.0,3405.7,2.93623]
[1721068502029,2.93545,3406.7,3405.9,2.93607]
[1721068502231,2.93545,3406.7,3406.0,2.93598]
[1721068502232,0.05875776,3406.6,3406.0,2.93598]
[1721068502525,0.05875776,3406.6,3405.7,2.93622]
[1721068502844,0.05875776,3406.6,3405.7,2.93618]
[1721068502845,3.29366854,3406.6,3405.7,2.93618]
[1721068503057,3.29366854,3406.6,3405.8,2.93615]
[1721068503525,0.35816854,3406.6,3405.9,2.93608]
[1721068503726,0.05875776,3406.5,3406.0,2.93599]
[1721068504027,2.93557,3406.5,3405.6,2.93626]
[1721068504201,0.05875776,3406.4,3405.6,2.93626]
[1721068504607,0.05875776,3406.4,3405.6,2.93627]
[1721068504608,2.99441776,3406.4,3405.6,2.93627]
[1721068504942,2.99441776,3406.4,3405.6,2.93628]
[1721068505102,0.59299478,3406.3,3405.6,2.93626]
[1721068505306,0.59299478,3406.3,3405.4,2.93648]
[1721068505307,0.05875776,3406.2,3405.4,2.93648]
[1721068505514,0.05875776,3406.2,3405.5,2.93637]
[1721068505690,0.05875776,3406.2,3405.6,2.93632]
[1721068506941,0.05875776,3406.2,3405.0,5.93681]
[1721068507236,0.05875776,3406.2,3405.9,2.93606]
[1721068507450,0.05875776,3406.5,3405.9,2.93606]
[1721068507602,0.05875776,3406.5,3405.7,2.93624]
[1721068507603,0.65170454,3406.5,3405.7,2.93624]
[1721068507802,0.65170454,3406.5,3405.8,2.93616]
[1721068508131,0.65170454,3406.5,3405.8,2.93609]
[1721068508443,0.65170454,3406.5,3405.9,2.93607]
[1721068509245,0.65170454,3406.5,3406.0,2.93599]
[1721068509551,0.05875776,3406.4,3406.0,2.93599]
[1721068509710,0.05875776,3406.4,3405.8,2.93609]
[1721068510546,2.93548,3406.6,3405.8,2.93609]
[1721068510547,0.05875776,3406.5,3405.8,2.93609]
[1721068510850,2.93565,3406.4,3405.2,2.93665]
[1721068511057,2.99452776,3406.3,3405.4,2.93644]
[1721068511237,0.05875776,3406.2,3405.4,2.93644]
[1721068511441,0.05875776,3406.2,3405.5,2.93637]
[1721068511813,2.99457776,3406.2,3405.5,2.93637]
[1721068512049,2.99457776,3406.2,3405.2,2.93665]
[1721068512211,0.32881428,3406.1,3404.9,2.93686]
[1721068512413,2.93617,3405.8,3405.0,2.93678]
[1721068512656,0.05875776,3405.7,3404.8,2.93699]
[1721068512854,2.99501776,3405.7,3405.0,2.93684]
[1721068513150,0.05875776,3405.7,3405.0,2.93684]
[1721068513450,0.05875776,3405.7,3405.4,2.93645]
[1721068513610,3.70216539,3406.5,3405.4,2.93645]
[1721068513611,2.93591,3406.1,3405.4,2.93645]
[1721068513810,2.93591,3406.1,3405.2,2.9366]